bitfinex/quotes_BTCUSD_20241123
["timestamp","ask_amount","ask_price","bid_price","bid_amount"]
[1732372056756,0.10201427,98532.0,98524.0,0.00123106]
[1732372056923,0.00076197,98531.0,98525.0,0.01012561]
[1732372057127,0.00076197,98531.0,98526.0,0.01012561]
[1732372057332,0.00076197,98531.0,98527.0,0.01012561]
[1732372057582,0.00076197,98531.0,98528.0,0.01012561]
[1732372057751,0.00076197,98531.0,98529.0,0.01012561]
[1732372057949,0.10201427,98532.0,98530.0,0.01012561]
[1732372058336,0.10201427,98532.0,98531.0,0.01012561]
[1732372058549,0.19976513,98532.0,98531.0,0.01012561]
[1732372058987,0.19976513,98532.0,98531.0,0.01645421]
[1732372060707,0.19976513,98532.0,98531.0,0.01645441]
[1732372061252,0.1997181,98532.0,98526.0,0.1815892]
[1732372061506,0.10120527,98532.0,98527.0,0.01645415]
[1732372061732,0.10120527,98532.0,98528.0,0.01645415]
[1732372061947,0.10292727,98532.0,98529.0,0.01645415]
[1732372062159,0.10292727,98532.0,98530.0,0.01645415]
[1732372062373,0.10292727,98532.0,98531.0,0.01645415]
[1732372062594,0.20027767,98532.0,98531.0,0.01645415]
[1732372063484,0.20027767,98532.0,98531.0,0.15260939]
[1732372063694,0.20027767,98532.0,98531.0,0.01645415]
[1732372064135,0.20027767,98532.0,98531.0,0.15260939]
[1732372064377,0.20027767,98532.0,98531.0,0.01645351]
[1732372064596,0.20027767,98532.0,98531.0,0.19804271]
[1732372065104,0.20027767,98532.0,98531.0,0.01645351]
[1732372065823,0.20027767,98532.0,98531.0,0.19804271]
[1732372066479,0.20027767,98532.0,98531.0,0.01645351]
[1732372066689,0.20027767,98532.0,98531.0,0.21068037]
[1732372066908,0.20027767,98532.0,98531.0,0.21076337]
[1732372067125,0.20027767,98532.0,98531.0,0.25624947]
[1732372067376,0.20027767,98532.0,98531.0,0.02919318]
[1732372068070,0.0990724,98532.0,98531.0,0.02919318]
[1732372068307,0.0990724,98532.0,98531.0,0.25624947]
[1732372068519,0.0990724,98532.0,98531.0,0.02919318]
[1732372068960,0.0990724,98532.0,98531.0,0.02977129]
[1732372069623,0.0990724,98532.0,98531.0,0.45223883]
[1732372069835,0.0990724,98532.0,98531.0,0.17977129]
[1732372070051,0.09882982,98532.0,98531.0,0.17919318]
[1732372070269,0.09864652,98532.0,98531.0,0.17919318]
[1732372070984,0.09864652,98532.0,98531.0,0.0291906]
[1732372074278,0.09864652,98532.0,98531.0,8.3e-05]
[1732372074499,0.09864652,98532.0,98531.0,0.02919186]
[1732372074765,0.09864652,98532.0,98531.0,8.3e-05]
[1732372075007,0.09864652,98532.0,98531.0,0.02919186]
[1732372075447,0.09864652,98532.0,98531.0,8.3e-05]
[1732372075664,0.09864652,98532.0,98531.0,0.02919145]
[1732372077699,0.09864652,98532.0,98531.0,0.15066111]
[1732372077913,0.09883186,98538.0,98531.0,0.17976903]
[1732372078134,0.09883186,98538.0,98536.0,0.22706218]
[1732372078347,0.09883186,98538.0,98537.0,0.01645216]
[1732372078578,0.09883186,98538.0,98536.0,0.18165105]
[1732372079012,0.09883186,98538.0,98534.0,0.18165105]
[1732372079226,0.09883186,98538.0,98531.0,0.15066111]
[1732372079227,0.09883186,98538.0,98535.0,0.18165105]
[1732372079451,0.09883186,98538.0,98531.0,0.15066111]
[1732372079452,0.09883186,98538.0,98536.0,0.18165105]
[1732372079673,0.09883186,98538.0,98535.0,0.18165105]
[1732372080144,0.09883186,98538.0,98536.0,0.18165105]
[1732372080378,0.09883186,98538.0,98531.0,0.150083]
[1732372080379,0.09883186,98538.0,98535.0,0.18165105]
[1732372080614,0.09883186,98538.0,98531.0,0.150083]
[1732372080615,0.09883186,98538.0,98536.0,0.18165105]
[1732372080838,0.09883186,98538.0,98536.0,0.18165114]
[1732372084276,0.09883186,98538.0,98537.0,0.18165114]
[1732372085157,0.09883186,98538.0,98531.0,0.15066111]
[1732372085372,0.09883186,98538.0,98531.0,0.00066111]
[1732372085555,0.09883186,98538.0,98534.0,0.22711627]
[1732372085986,0.09883186,98538.0,98535.0,0.22711627]
[1732372086634,0.10055366,98538.0,98535.0,0.22711627]
[1732372087310,0.10055366,98538.0,98531.0,0.0009439]
[1732372087311,0.10055366,98538.0,98536.0,0.22711627]
[1732372087986,0.10055366,98538.0,98537.0,0.22711627]
[1732372088209,0.10055366,98538.0,98537.0,0.22769438]
[1732372088423,0.10055366,98538.0,98537.0,0.22772491]
[1732372088648,0.10055366,98538.0,98537.0,0.01070194]
[1732372089574,0.10055366,98538.0,98537.0,0.43327197]
[1732372089786,0.10055366,98538.0,98537.0,0.43269386]
[1732372090003,0.10055366,98538.0,98537.0,0.16070194]
[1732372090309,0.10055366,98538.0,98537.0,0.16012383]
[1732372090518,0.10055366,98538.0,98537.0,0.16070194]
[1732372090732,0.10055366,98538.0,98537.0,0.0170293]
[1732372090948,0.10055366,98538.0,98537.0,0.01645119]
[1732372091158,0.10055366,98538.0,98537.0,0.0170293]
[1732372092992,0.10055366,98538.0,98529.0,0.023]
[1732372093423,0.10055366,98538.0,98531.0,0.1152]
[1732372093641,0.10055366,98538.0,98533.0,0.023]
[1732372093865,0.10055366,98538.0,98535.0,0.023]
[1732372094101,0.10055366,98538.0,98536.0,0.10201427]
[1732372094315,0.10055366,98538.0,98537.0,0.023]
[1732372094549,0.10055366,98538.0,98537.0,0.12501427]
[1732372094991,0.10055366,98538.0,98537.0,0.27501427]
[1732372095657,0.10055366,98538.0,98537.0,0.54754641]
[1732372095873,0.10055366,98538.0,98537.0,0.27501427]
[1732372096839,0.10055366,98538.0,98537.0,0.54755264]
[1732372097298,0.10055366,98538.0,98537.0,0.27501427]
[1732372097754,0.0017218,98538.0,98537.0,0.27501427]
[1732372098199,0.0017218,98538.0,98537.0,0.30477082]
[1732372098631,0.0017216,98545.0,98539.0,0.023]
[1732372098845,0.0017216,98545.0,98537.0,0.15477082]
[1732372098846,0.0017216,98545.0,98541.0,0.173]
[1732372099505,0.0017216,98545.0,98541.0,0.44548724]
[1732372099732,0.0017216,98545.0,98541.0,0.173]
[1732372100193,0.0017216,98545.0,98543.0,0.173]
[1732372100421,0.0017216,98545.0,98543.0,0.44548724]
[1732372100653,0.1234,98544.0,98543.0,0.15]
[1732372100882,0.22301078,98544.0,98543.0,0.15]
[1732372101108,0.22301078,98544.0,98541.0,0.15]
[1732372101335,0.1234,98544.0,98541.0,0.15]
[1732372101562,0.1234,98544.0,98540.0,0.27248724]
[1732372101563,0.1234,98544.0,98540.0,0.15]
[1732372101998,0.1234,98544.0,98536.0,0.1508608]
[1732372102223,0.1234,98544.0,98536.0,0.15187555]
[1732372102437,0.1234,98544.0,98536.0,0.00187555]
[1732372103076,0.1234,98544.0,98543.0,0.15]
[1732372103300,0.1234,98544.0,98543.0,0.16012359]
[1732372103301,0.21655281,98544.0,98543.0,0.16012359]
[1732372103949,0.21655281,98544.0,98543.0,0.01012359]
[1732372104915,0.21655281,98544.0,98543.0,0.01645099]
[1732372105140,0.21731478,98544.0,98543.0,0.01645126]
[1732372106463,0.31932905,98544.0,98543.0,0.01645126]
[1732372106688,0.31856708,98544.0,98543.0,0.24368814]
[1732372107120,0.31856708,98544.0,98543.0,0.01645126]
[1732372107767,0.31356708,98544.0,98543.0,0.24371092]
[1732372107981,0.31356708,98544.0,98543.0,0.24371057]
[1732372108395,0.31356708,98544.0,98543.0,0.01645126]
[1732372108607,0.31356708,98544.0,98541.0,0.22727746]
[1732372108608,0.19516708,98544.0,98541.0,0.22727746]
[1732372108814,0.19516708,98544.0,98536.0,0.0008608]
[1732372108815,0.14797624,98543.0,98540.0,0.18183607]
[1732372109021,0.14797624,98543.0,98541.0,0.01645449]
[1732372109022,0.10277624,98543.0,98541.0,0.01645449]
[1732372109275,0.10277624,98543.0,98542.0,0.10737682]
[1732372109468,0.24297094,98543.0,98542.0,0.10737682]
[1732372109705,0.24220897,98543.0,98542.0,0.10737682]
[1732372110353,0.001,98565.0,98542.0,0.01645449]
[1732372110575,0.28309686,98593.0,98542.0,0.01645449]
[1732372110576,7e-07,98543.0,98542.0,0.00032377]
[1732372110812,0.00076197,98567.0,98542.0,0.01677723]
[1732372111026,0.00076197,98566.0,98543.0,0.07400306]
[1732372111263,0.00076197,98569.0,98545.0,0.00032377]
[1732372111489,0.001,98571.0,98548.0,0.00032377]
[1732372111490,0.00076197,98568.0,98548.0,0.00032377]
[1732372111708,0.00076197,98570.0,98551.0,0.00032377]
[1732372111960,0.1441714,98576.0,98546.0,0.15]
[1732372111961,0.00076197,98569.0,98552.0,0.01677723]
[1732372112174,0.001721,98576.0,98546.0,0.35]
[1732372112175,0.00076197,98575.0,98553.0,0.01677723]
[1732372112384,0.00076197,98574.0,98554.0,0.01645346]
[1732372112607,0.00076197,98574.0,98556.0,0.00032377]
[1732372112823,0.00076197,98574.0,98557.0,0.01012521]
[1732372113052,0.00076197,98574.0,98558.0,0.01012521]
[1732372113229,0.00076197,98574.0,98547.0,0.14847193]
[1732372113230,0.0452,98573.0,98559.0,0.01012521]
[1732372113470,0.00076197,98572.0,98560.0,0.01012521]
[1732372113689,0.00076197,98572.0,98561.0,0.01012521]
[1732372113902,0.00076197,98572.0,98562.0,0.01012521]
[1732372114108,0.00076197,98572.0,98563.0,0.01012521]
[1732372114295,0.082,98571.0,98564.0,0.01012521]
[1732372114510,0.00076197,98570.0,98565.0,0.01012521]
[1732372114722,0.00076197,98570.0,98566.0,0.01012521]
[1732372114956,0.00076197,98570.0,98567.0,0.01012521]
[1732372115167,0.00076197,98570.0,98568.0,0.01012521]
[1732372115377,0.00076197,98570.0,98569.0,0.01012384]
[1732372115622,0.00076197,98570.0,98555.0,0.09092233]
[1732372115623,0.09657397,98570.0,98555.0,0.09092233]
[1732372115842,0.09657397,98570.0,98569.0,0.01012407]
[1732372116053,0.000812,98570.0,98569.0,0.01012407]
[1732372116265,0.095812,98570.0,98569.0,0.01012407]
[1732372117611,0.09519253,98570.0,98569.0,0.01012407]
[1732372118737,0.09519253,98570.0,98552.0,0.13636766]
[1732372118738,0.09519253,98570.0,98551.0,0.12400194]
[1732372119372,0.09519253,98570.0,98569.0,0.02066545]
[1732372120074,0.22659253,98570.0,98569.0,0.02066545]
[1732372120287,0.33327833,98570.0,98569.0,0.02066545]
[1732372120915,0.33227833,98570.0,98569.0,0.02066545]
[1732372121142,0.29276877,98570.0,98569.0,0.03081045]
[1732372121359,0.33508632,98570.0,98569.0,0.03081045]
[1732372121565,0.33608632,98570.0,98569.0,0.03081045]
[1732372122695,0.33608632,98570.0,98569.0,0.010145]
[1732372122696,0.33508632,98570.0,98569.0,0.010145]
[1732372124263,0.33608632,98570.0,98569.0,0.010145]
[1732372124478,0.33508632,98570.0,98569.0,0.010145]
[1732372124684,0.33508632,98570.0,98569.0,0.01647262]
[1732372125331,0.33680692,98570.0,98569.0,0.01647262]
[1732372127080,0.33680692,98570.0,98569.0,0.01647259]
[1732372127809,0.31651692,98570.0,98569.0,0.01647259]
[1732372128048,0.23535692,98570.0,98569.0,0.01647259]
[1732372128307,0.13334265,98570.0,98569.0,0.01647259]
[1732372128544,0.10059784,98570.0,98569.0,0.01647259]
[1732372128780,0.10059784,98570.0,98569.0,0.0265958]
[1732372129509,0.09436641,98570.0,98569.0,0.0495958]
[1732372129741,0.001721,98576.0,98569.0,0.0495958]
[1732372129742,0.001721,98576.0,98574.0,0.010144]
[1732372129965,0.001721,98576.0,98575.0,0.0265948]
[1732372130196,0.09608741,98576.0,98575.0,0.0265948]
[1732372130439,0.03349941,98576.0,98575.0,0.02659418]
[1732372130665,0.09436641,98576.0,98575.0,0.02659418]
[1732372130891,0.09436641,98576.0,98575.0,0.02659415]
[1732372131150,0.053499,98576.0,98575.0,0.02659415]
[1732372131366,0.03321,98576.0,98575.0,0.02659415]
[1732372131593,0.053499,98576.0,98575.0,0.02659415]
[1732372132436,0.03321,98576.0,98575.0,0.02659415]
[1732372132635,0.0263129,98580.0,98579.0,0.010144]
[1732372132801,0.10201427,98580.0,98579.0,0.02659415]
[1732372133000,0.15551327,98580.0,98579.0,0.02659415]
[1732372133179,0.10201427,98580.0,98579.0,0.02659415]
[1732372133396,0.001,98599.0,98597.0,0.010142]
[1732372133617,0.24632517,98598.0,98597.0,0.02659069]
[1732372136632,0.37602517,98598.0,98597.0,0.02659069]
[1732372137141,0.37602517,98598.0,98597.0,0.010142]
[1732372137398,0.37602517,98598.0,98597.0,0.02659054]
[1732372138612,0.37502517,98598.0,98597.0,0.02659054]
[1732372139845,0.37602517,98598.0,98597.0,0.02659054]
[1732372140292,0.37602517,98598.0,98597.0,0.010142]
[1732372140516,0.37602517,98598.0,98597.0,0.02659082]
[1732372140759,0.37502517,98598.0,98597.0,0.02659082]
[1732372141259,0.37502517,98598.0,98597.0,0.04687482]
[1732372141667,0.37602517,98598.0,98597.0,0.04687482]
[1732372142676,0.37602517,98598.0,98597.0,0.04687503]
[1732372143567,0.37602517,98598.0,98597.0,0.05952808]
[1732372144507,0.37502517,98598.0,98597.0,0.05952808]
[1732372145089,0.37602517,98598.0,98597.0,0.05952808]
[1732372145857,0.37602517,98598.0,98597.0,0.030426]
[1732372146074,0.37602517,98598.0,98597.0,0.05952792]
[1732372146301,0.37602517,98598.0,98597.0,0.04687491]
[1732372151352,0.37602517,98598.0,98597.0,0.02292652]
[1732372151575,0.37602517,98598.0,98595.0,0.020284]
[1732372151576,0.1434504,98596.0,98595.0,0.020284]
[1732372151785,0.1434504,98596.0,98590.0,0.020286]
[1732372151786,0.1434504,98591.0,98590.0,0.020286]
[1732372151995,0.36956467,98591.0,98590.0,0.020286]
[1732372161270,0.36956467,98591.0,98583.0,0.0110031]
[1732372161271,0.1434504,98584.0,98583.0,0.0110031]
[1732372161517,0.24546467,98584.0,98583.0,0.02112714]
[1732372163190,0.24546467,98584.0,98583.0,0.0110031]
[1732372163456,0.24446467,98584.0,98583.0,0.01733062]
[1732372163696,0.37586467,98584.0,98583.0,0.01733062]
[1732372163917,0.37486467,98584.0,98583.0,0.01733098]
[1732372164188,0.37586467,98584.0,98583.0,0.0110031]
[1732372165116,0.37486467,98584.0,98583.0,0.0110031]
[1732372165354,0.37586467,98584.0,98583.0,0.0110031]
[1732372169613,0.001,98570.0,98552.0,0.3928811]
[1732372170589,0.1434504,98574.0,98573.0,0.010144]
[1732372170842,0.1434504,98574.0,98573.0,0.0164719]
[1732372172546,0.1434504,98574.0,98573.0,0.010144]
[1732372173568,0.24546467,98574.0,98573.0,0.010144]
[1732372174050,0.24446467,98574.0,98573.0,0.010144]
[1732372174302,0.24546467,98574.0,98573.0,0.010144]
[1732372177243,0.24546467,98574.0,98573.0,0.011004]
[1732372177665,0.24546467,98574.0,98573.0,0.01733192]
[1732372178109,0.24546467,98574.0,98573.0,0.011004]
[1732372178336,0.24546467,98574.0,98573.0,0.01733194]
[1732372180148,0.24546467,98574.0,98573.0,0.02745641]
[1732372180600,0.24546467,98574.0,98573.0,0.01733194]
[1732372180872,0.24546467,98574.0,98573.0,0.02745651]
[1732372181097,0.24546467,98574.0,98573.0,0.01733194]
[1732372181334,0.24546467,98574.0,98573.0,0.01731271]
[1732372181800,0.001,98570.0,98553.0,0.023]
[1732372182035,0.10201427,98569.0,98553.0,0.023]
[1732372182252,0.10201427,98569.0,98552.0,0.19691605]
[1732372182703,0.02184514,98569.0,98552.0,0.19691605]
[1732372182921,0.02184514,98569.0,98552.0,0.19686289]
[1732372184023,0.02184514,98569.0,98552.0,0.23761529]
[1732372184246,0.02184514,98569.0,98554.0,0.09085502]
[1732372184471,0.02184514,98569.0,98552.0,0.32847031]
[1732372184680,0.001,98567.0,98553.0,0.0461]
[1732372185069,0.10201427,98566.0,98553.0,0.0461]
[1732372185328,0.10201427,98566.0,98554.0,0.023]
[1732372189806,0.10201427,98566.0,98554.0,0.0238603]
[1732372191924,0.10201427,98566.0,98555.0,0.01012454]
[1732372192177,0.10201427,98566.0,98563.0,0.010145]
[1732372192403,0.10201427,98566.0,98564.0,0.01012454]
[1732372192629,0.10201427,98566.0,98565.0,0.01012454]
[1732372193744,0.10301427,98566.0,98565.0,0.01012454]
[1732372193969,0.10301427,98566.0,98565.0,0.01645249]
[1732372196115,0.10201427,98566.0,98565.0,0.01645249]
[1732372196779,0.10201427,98566.0,98565.0,0.05795891]
[1732372197902,0.10201427,98566.0,98565.0,0.05795903]
[1732372198140,0.10201427,98566.0,98565.0,0.04150642]
[1732372198355,0.10201427,98566.0,98565.0,0.05795903]
[1732372198617,0.10201427,98566.0,98565.0,0.01645261]
[1732372199627,0.00172,98593.0,98566.0,0.218]
[1732372199828,0.0622962,98583.0,98574.0,0.09101834]
[1732372200065,0.0622962,98583.0,98580.0,0.13652751]
[1732372200287,0.0622962,98583.0,98581.0,0.01645261]
[1732372200500,0.0622962,98583.0,98582.0,0.01645261]
[1732372200923,0.0622962,98583.0,98580.0,0.13652751]
[1732372201151,0.0622962,98583.0,98581.0,0.01012232]
[1732372201397,0.0622962,98583.0,98579.0,0.010144]
[1732372201398,0.0622962,98583.0,98582.0,0.0909872]
[1732372201859,0.0622962,98583.0,98582.0,0.10110949]
[1732372202095,0.0622962,98583.0,98582.0,0.01012229]
[1732372203446,0.064017,98583.0,98582.0,0.01012229]
[1732372203887,0.190217,98583.0,98582.0,0.01012229]
[1732372208789,0.191217,98583.0,98582.0,0.01012229]
[1732372209309,0.190217,98583.0,98582.0,0.01012229]
[1732372211972,0.142817,98583.0,98582.0,0.01012229]
[1732372213589,0.3324674,98583.0,98582.0,0.01012229]
[1732372215443,0.3324674,98583.0,98564.0,0.13192165]
[1732372215444,0.001,98571.0,98564.0,0.13192165]
[1732372215660,0.10201427,98570.0,98564.0,0.04105526]
[1732372216090,0.10201427,98570.0,98557.0,0.15]
[1732372216774,0.10201427,98570.0,98555.0,0.32391605]
[1732372217252,0.10201427,98570.0,98556.0,0.15]
[1732372218353,0.10201427,98570.0,98555.0,0.21467573]
[1732372218354,0.10201427,98570.0,98555.0,0.36467573]
[1732372219341,0.001,98568.0,98555.0,0.36467573]
[1732372219557,0.10201427,98567.0,98555.0,0.36467573]
[1732372220270,0.10201427,98567.0,98555.0,0.21467573]
[1732372220521,0.10201427,98567.0,98556.0,0.15]
[1732372220989,0.001,98565.0,98556.0,0.15]
[1732372221204,0.0799,98566.0,98555.0,0.16380007]
[1732372221205,0.10201427,98564.0,98555.0,0.16380007]
[1732372221432,0.10301427,98564.0,98555.0,0.04117089]
[1732372221670,0.001,98556.0,98555.0,0.04117089]
[1732372221889,0.001,98555.0,98554.0,0.0008603]
[1732372222107,0.10201427,98555.0,98554.0,0.0008603]
[1732372225466,0.10201427,98555.0,98554.0,0.01098547]
[1732372225710,0.10201427,98555.0,98554.0,0.05311036]
[1732372226212,0.10201427,98555.0,98554.0,0.01098547]
[1732372227121,0.15101427,98555.0,98554.0,0.01098547]
[1732372227376,0.23131427,98555.0,98554.0,0.01098547]
[1732372228279,0.23131427,98555.0,98554.0,0.0008603]
[1732372228985,0.23131427,98555.0,98544.0,0.14752105]
[1732372229219,0.10201427,98554.0,98544.0,0.14752105]
[1732372230950,0.10201427,98554.0,98544.0,0.18966949]
[1732372233775,0.10201427,98554.0,98544.0,0.33966949]
[1732372234050,0.10201427,98554.0,98544.0,0.19214844]
[1732372234726,0.001,98553.0,98536.0,0.0008608]
[1732372234969,0.10201427,98552.0,98538.0,0.14752105]
[1732372235190,0.10201427,98552.0,98537.0,0.15]
[1732372235438,0.10201427,98552.0,98539.0,0.15]
[1732372235914,0.10201427,98552.0,98537.0,0.15]
[1732372236140,0.001,98548.0,98537.0,0.15]
[1732372236379,0.23131427,98547.0,98537.0,0.15]
[1732372237043,0.23131427,98547.0,98536.0,0.0008608]
[1732372237514,0.23131427,98547.0,98536.0,0.04173258]
[1732372237743,0.23131427,98547.0,98537.0,0.15]
[1732372238195,0.23131427,98547.0,98537.0,0.29752105]
[1732372239562,0.23131427,98547.0,98537.0,0.14752105]
[1732372241141,0.23131427,98547.0,98537.0,0.14838125]
[1732372242323,0.23131427,98547.0,98537.0,0.29838125]
[1732372242566,0.23131427,98547.0,98537.0,0.14838125]
[1732372242784,0.23131427,98547.0,98537.0,0.29838125]
[1732372243721,0.23131427,98547.0,98537.0,0.1508602]
[1732372243947,0.23131427,98547.0,98537.0,0.29838125]
[1732372247145,0.001,98546.0,98537.0,0.14838125]
[1732372247387,0.10201427,98545.0,98537.0,0.14838125]
[1732372249057,0.10201427,98545.0,98537.0,0.0008602]
[1732372249319,0.001,98543.0,98537.0,0.0008602]
[1732372249566,0.10201427,98542.0,98537.0,0.0008602]
[1732372249786,0.10201427,98542.0,98537.0,0.14838125]
[1732372251397,0.10201427,98542.0,98537.0,0.0008602]
[1732372251630,0.10201427,98542.0,98537.0,0.14838125]
[1732372253954,0.10201427,98542.0,98537.0,0.0008602]
[1732372254866,0.001,98539.0,98537.0,0.0008602]
[1732372255086,0.10201427,98538.0,98537.0,0.0008602]
[1732372255756,0.39681114,98538.0,98537.0,0.0008602]
[1732372255978,0.37226467,98538.0,98537.0,0.0008602]
[1732372258735,0.1268,98526.0,98524.0,0.9970815]
[1732372258973,0.10201427,98525.0,98524.0,0.9970815]
[1732372263311,0.10301427,98525.0,98524.0,0.9970815]
[1732372263536,0.23001427,98525.0,98524.0,0.9970815]
[1732372264229,0.37246467,98525.0,98524.0,0.9970815]
[1732372265544,0.37246467,98525.0,98524.0,0.9979419]
[1732372277992,0.37246467,98525.0,98524.0,0.76948279]
[1732372279423,0.37418587,98525.0,98524.0,0.76948279]
[1732372281751,0.37418587,98525.0,98524.0,0.77581358]
[1732372281974,0.37318587,98525.0,98524.0,0.76948279]
[1732372282212,0.37418587,98525.0,98524.0,0.76948279]
[1732372282439,0.37418587,98525.0,98524.0,0.77581362]
[1732372282675,0.37418587,98525.0,98524.0,0.76948279]
[1732372284632,0.37418587,98525.0,98524.0,0.77581378]
[1732372286045,0.37418587,98525.0,98524.0,0.77581364]
[1732372288808,0.36818587,98525.0,98524.0,0.77581364]
[1732372289187,0.36918587,98525.0,98524.0,0.77581364]
[1732372290187,0.36818587,98525.0,98524.0,0.77581364]
[1732372290398,0.36918587,98525.0,98524.0,0.77581364]
[1732372292539,0.36918587,98525.0,98524.0,0.76948279]
[1732372293620,0.36818587,98525.0,98524.0,0.43717312]
[1732372294249,0.36818587,98525.0,98524.0,0.4370383]
[1732372294721,0.36918587,98525.0,98524.0,0.4370383]
[1732372294930,0.36818587,98525.0,98524.0,0.4370383]
[1732372295556,0.36818587,98525.0,98524.0,0.44716814]
[1732372295752,0.36918587,98525.0,98524.0,0.4471682]
[1732372298614,0.40610446,98525.0,98524.0,0.43487186]
[1732372298816,0.36918587,98525.0,98524.0,0.42250974]
[1732372299494,0.36918587,98525.0,98524.0,0.41323816]
[1732372299706,0.36918587,98525.0,98524.0,0.38971602]
[1732372301667,0.36818587,98525.0,98524.0,0.38971602]
[1732372301869,0.36918587,98525.0,98524.0,0.38971648]
[1732372305877,0.36918587,98525.0,98524.0,0.38971628]
[1732372308412,0.36918587,98525.0,98524.0,0.38971637]
[1732372310141,0.24218587,98525.0,98524.0,0.38971637]
[1732372310358,0.09873547,98525.0,98524.0,0.40237931]
[1732372310578,0.09873547,98525.0,98524.0,0.52867931]
[1732372311087,0.0017212,98525.0,98524.0,0.52867931]
[1732372311368,2e-07,98525.0,98524.0,0.82620036]
[1732372311823,2e-07,98525.0,98524.0,1.09933494]
[1732372312058,2e-07,98525.0,98524.0,0.82620036]
[1732372312779,2e-07,98525.0,98524.0,0.60550945]
[1732372313648,2e-07,98525.0,98524.0,0.83278063]
[1732372314575,2e-07,98525.0,98524.0,0.60550945]
[1732372315549,2e-07,98525.0,98524.0,0.64725687]
[1732372316687,2e-07,98525.0,98524.0,0.82892336]
[1732372317189,2e-07,98525.0,98524.0,0.64725687]
[1732372317880,2e-07,98525.0,98524.0,0.64825687]
[1732372318783,2e-07,98525.0,98524.0,0.64725687]
[1732372319270,2e-07,98525.0,98524.0,0.72780647]
[1732372319509,2e-07,98525.0,98524.0,0.72147497]
[1732372319728,2e-07,98525.0,98524.0,0.72780401]
[1732372320696,2e-07,98525.0,98524.0,0.90934789]
[1732372320932,2e-07,98525.0,98524.0,0.72780401]
[1732372321655,2e-07,98525.0,98524.0,0.94838339]
[1732372321904,2e-07,98525.0,98524.0,0.72780354]
[1732372322141,2e-07,98525.0,98524.0,0.7404607]
[1732372323088,2e-07,98525.0,98524.0,0.72780354]
[1732372325585,2e-07,98525.0,98524.0,0.40573738]
[1732372326478,2e-07,98525.0,98524.0,0.40659798]
[1732372326743,2e-07,98525.0,98524.0,0.48503676]
[1732372327418,2e-07,98525.0,98524.0,0.34904838]
[1732372327890,2e-07,98525.0,98524.0,0.40659798]
[1732372328592,2e-07,98525.0,98524.0,0.53299816]
[1732372329956,2e-07,98525.0,98524.0,0.52666941]
[1732372333074,2e-07,98525.0,98524.0,0.62361979]
[1732372333294,2e-07,98525.0,98524.0,0.53299818]
[1732372333509,2e-07,98525.0,98524.0,0.62360298]
[1732372333731,2e-07,98525.0,98524.0,0.62360284]
[1732372334204,2e-07,98525.0,98524.0,0.62360316]
[1732372334913,2e-07,98525.0,98524.0,0.62460316]
[1732372335151,2e-07,98525.0,98524.0,0.23553028]
[1732372335789,2e-07,98525.0,98524.0,0.23453028]
[1732372336007,2e-07,98525.0,98524.0,0.22920151]
[1732372337124,2e-07,98525.0,98524.0,0.37920151]
[1732372338028,0.0037208,98547.0,98524.0,0.37920151]
[1732372338029,1e-06,98547.0,98544.0,0.010147]
[1732372338938,0.00298312,98591.0,98554.0,0.15]
[1732372339153,0.10201427,98586.0,98555.0,0.023]
[1732372339378,0.101407,98612.0,98596.0,0.010142]
[1732372339806,0.101407,98612.0,98604.0,0.03050885]
[1732372339808,0.11118839,98616.0,98571.0,0.010144]
[1732372340029,0.101405,98614.0,98595.0,0.010142]
[1732372340267,0.09056973,98616.0,98572.0,0.010144]
[1732372340505,0.09056973,98615.0,98606.0,0.010141]
[1732372340733,0.09056973,98615.0,98580.0,0.05433722]
[1732372340734,0.09056973,98616.0,98594.0,0.010142]
[1732372340954,0.136715,98620.0,98594.0,0.010142]
[1732372340955,0.10673811,98615.0,98605.0,0.010141]
[1732372341182,0.10673811,98615.0,98580.0,0.05433722]
[1732372341183,0.09056973,98616.0,98580.0,0.05433722]
[1732372341433,0.09056973,98616.0,98614.0,0.040562]
[1732372341660,0.09056973,98617.0,98580.0,0.05433722]
[1732372341890,0.01388456,98615.0,98614.0,0.040562]
[1732372342116,0.0008604,98620.0,98608.0,0.040564]
[1732372342117,0.09056973,98618.0,98608.0,0.040564]
[1732372342362,0.09056973,98618.0,98615.0,0.040561]
[1732372342589,0.09056973,98618.0,98584.0,0.040574]
[1732372342590,0.0831,98614.0,98561.0,0.35]
[1732372342817,0.0831,98614.0,98613.0,0.040562]
[1732372343263,0.1312,98614.0,98613.0,0.040562]
[1732372343500,0.0008604,98620.0,98568.0,0.15]
[1732372343501,0.1312,98611.0,98568.0,0.15]
[1732372343722,0.0831,98607.0,98568.0,0.15]
[1732372343950,0.1312,98607.0,98606.0,0.040565]
[1732372350195,0.1329208,98607.0,98606.0,0.040565]
[1732372351097,0.14621288,98607.0,98606.0,0.040565]
[1732372351333,0.1329208,98607.0,98606.0,0.040565]
[1732372356354,0.16565723,98607.0,98606.0,0.040565]
[1732372362690,0.16565723,98607.0,98604.0,0.040566]
[1732372362691,0.16565723,98607.0,98599.0,0.040568]
[1732372362954,0.16565723,98607.0,98593.0,0.04057]
[1732372362955,0.10201427,98600.0,98597.0,0.040569]
[1732372363193,0.10201427,98598.0,98597.0,0.040569]
[1732372364258,0.10201427,98598.0,98594.0,0.04057]
[1732372364503,0.10201427,98595.0,98576.0,0.040577]
[1732372364726,0.10201427,98585.0,98570.0,0.15]
[1732372364946,0.18371427,98585.0,98584.0,0.040574]
[1732372365246,0.18371427,98585.0,98583.0,0.040574]
[1732372365508,0.18371427,98585.0,98581.0,0.040575]
[1732372365977,0.18371427,98585.0,98584.0,0.040574]
[1732372366478,0.18371427,98585.0,98576.0,0.040577]
[1732372366721,0.18371427,98585.0,98560.0,0.1184788]
[1732372366722,0.0817,98585.0,98580.0,0.040575]
[1732372367178,0.0817,98585.0,98580.0,0.08115]
[1732372367406,0.0817,98585.0,98580.0,0.040575]
[1732372368365,0.0817,98585.0,98582.0,0.040575]
[1732372368576,0.10201427,98583.0,98582.0,0.040575]
[1732372369690,0.10201427,98583.0,98580.0,0.040575]
[1732372369915,0.10201427,98581.0,98580.0,0.040575]
[1732372373173,0.10201427,98581.0,98580.0,0.0414351]
[1732372374734,0.10201427,98581.0,98580.0,0.0008601]
[1732372376603,0.286458,98581.0,98580.0,0.0008601]
[1732372376855,0.33545327,98581.0,98580.0,0.0008601]
[1732372378430,0.101441,98579.0,98570.0,0.04058]
[1732372378652,0.10201427,98571.0,98570.0,0.04058]
[1732372379989,0.10201427,98571.0,98569.0,0.04058]
[1732372380204,0.10201427,98570.0,98569.0,0.04058]
[1732372382023,0.10201427,98570.0,98567.0,0.040581]
[1732372382253,0.10201427,98568.0,98567.0,0.040581]
[1732372385038,0.10201427,98568.0,98562.0,0.08093032]
[1732372385039,0.10201427,98568.0,98563.0,0.040583]